fUSD/lending_fUSD_20250623
["ID","MTS","AMOUNT","RATE_DAILY","PERIOD"]
[367216974,1750703460048,-490.0,0.00023257,2]
[367216975,1750703460059,-490.0,0.00023257,2]
[367216977,1750703460069,-607.45,0.00023257,2]
[367216979,1750703460079,-729.02,0.00023257,2]
[367216981,1750703460088,-490.0,0.00023257,2]
[367216983,1750703460098,-490.0,0.00023257,2]
[367216985,1750703460108,-617.15,0.00023257,2]
[367216987,1750703460118,-490.0,0.00023257,2]
[367216989,1750703460127,-490.0,0.00023257,2]
[367216991,1750703460136,-490.0,0.00023257,2]
[367216992,1750703460146,-490.0,0.00023257,2]
[367216994,1750703460156,-490.0,0.00023257,2]
[367216996,1750703460166,-490.0,0.00023257,2]
[367216998,1750703460175,-490.0,0.00023257,2]
[367217000,1750703460185,-490.0,0.00023257,2]
[367217002,1750703460195,-637.23,0.00023257,2]
[367217004,1750703460204,-1149.63,0.00023257,2]
[367217006,1750703460213,-490.0,0.00023257,2]
[367217008,1750703460222,-490.0,0.00023257,2]
[367217010,1750703460232,-490.0,0.00023257,2]
[367217012,1750703460241,-606.54,0.00023257,2]
[367217014,1750703460250,-490.0,0.00023257,2]
[367217016,1750703460261,-731.09,0.00023257,2]
[367217018,1750703460270,-570.4,0.00023257,2]
[367217019,1750703460280,-490.0,0.00023257,2]
[367217021,1750703460290,-713.53,0.00023257,2]
[367217023,1750703460301,-517.78,0.00023257,2]
[367217025,1750703460311,-1173.71,0.00023257,2]
[367217027,1750703460320,-490.0,0.00023257,2]
[367217029,1750703460330,-490.0,0.00023257,2]
[367217031,1750703460339,-1154.59,0.00023257,2]
[367217033,1750703460349,-1991.65,0.00023257,2]
[367217035,1750703460359,-490.0,0.00023257,2]
[367217037,1750703460368,-490.0,0.00023257,2]
[367217039,1750703460378,-1254.92,0.00023257,2]
[367217041,1750703460387,-490.0,0.00023257,2]
[367217043,1750703460397,-1129.65,0.00023257,2]
[367217045,1750703460407,-490.0,0.00023257,2]
[367217047,1750703460417,-490.0,0.00023257,2]
[367217049,1750703460427,-490.0,0.00023257,2]
[367217051,1750703460436,-956.46,0.00023257,2]
[367217053,1750703460446,-490.0,0.00023257,2]
[367217055,1750703460456,-490.0,0.00023257,2]
[367217057,1750703460465,-490.0,0.00023257,2]
[367217059,1750703460475,-1051.95,0.00023257,2]
[367217061,1750703460484,-515.02,0.00023257,2]
[367217063,1750703460494,-491.13807775,0.00023257,2]
[367217065,1750703460504,-601.19,0.00023257,2]
[367217067,1750703460514,-840.26,0.00023257,2]
[367217069,1750703460525,-490.0,0.00023257,2]
[367217071,1750703460536,-490.0,0.00023257,2]
[367217073,1750703460546,-1158.17,0.00023257,2]
[367217075,1750703460556,-152.96918088,0.00023257,2]
[367217077,1750703460566,-490.0,0.00023257,2]
[367217079,1750703460576,-490.0,0.00023257,2]
[367217081,1750703460586,-490.0,0.00023257,2]
[367217083,1750703460595,-490.0,0.00023257,2]
[367217085,1750703460606,-1285.89,0.00023257,2]
[367217086,1750703460616,-182.28750954,0.00023257,2]
[367217088,1750703460631,-743.2,0.00023257,2]
[367217091,1750703460641,-1526.4,0.00023257,2]
[367217092,1750703460653,-490.0,0.00023257,2]
[367217095,1750703460666,-490.0,0.00023257,2]
[367217097,1750703460676,-535.52,0.00023257,2]
[367217098,1750703460685,-648.5,0.00023257,2]
[367217100,1750703460696,-490.0,0.00023257,2]
[367217102,1750703460706,-490.0,0.00023257,2]
[367217104,1750703460716,-490.0,0.00023257,2]
[367217106,1750703460725,-861.08,0.00023257,2]
[367217108,1750703460735,-1495.67,0.00023257,2]
[367217110,1750703460745,-1239.6,0.00023257,2]
[367217112,1750703460754,-490.0,0.00023257,2]
[367217114,1750703460765,-1132.38,0.00023257,2]
[367217116,1750703460775,-730.62,0.00023257,2]
[367217118,1750703460785,-747.06,0.00023257,2]
[367217120,1750703460795,-972.8,0.00023257,2]
[367217122,1750703460804,-1192.72,0.00023257,2]
[367217124,1750703460814,-490.0,0.00023257,2]
[367217126,1750703460823,-560.45,0.00023257,2]
[367217128,1750703460833,-490.0,0.00023257,2]
[367217130,1750703460842,-1216.57,0.00023257,2]
[367217132,1750703460853,-490.0,0.00023257,2]
[367217134,1750703460863,-490.0,0.00023257,2]
[367217136,1750703460872,-490.0,0.00023257,2]
[367217138,1750703460881,-1294.53,0.00023257,2]
[367217140,1750703460892,-490.0,0.00023257,2]
[367217142,1750703460903,-1932.47,0.00023257,2]
[367217144,1750703460913,-582.49,0.00023257,2]
[367217146,1750703460924,-1073.73,0.00023257,2]
[367217148,1750703460934,-490.0,0.00023257,2]
[367217150,1750703460944,-470.31,0.00023257,2]
[367217152,1750703460955,-490.0,0.00023257,2]
[367217154,1750703460964,-772.52,0.00023257,2]
[367217156,1750703460974,-490.0,0.00023257,2]
[367217158,1750703460984,-522.05,0.00023257,2]
[367217160,1750703460993,-490.0,0.00023257,2]
[367217162,1750703461003,-802.6,0.00023257,2]
[367217164,1750703461013,-2061.06,0.00023257,2]
[367217166,1750703461023,-1016.11,0.00023257,2]
[367217168,1750703461032,-1256.2,0.00023257,2]
[367217170,1750703461041,-439.74,0.00023257,2]
[367217172,1750703461051,-490.0,0.00023257,2]
[367217174,1750703461060,-569.67,0.00023257,2]
[367217176,1750703461070,-1010.98,0.00023257,2]
[367217178,1750703461080,-1382.88,0.00023257,2]
[367217180,1750703461089,-1431.14,0.00023257,2]
[367217182,1750703461100,-1785.37,0.00023257,2]
[367217184,1750703461109,-491.94,0.00023257,2]
[367217185,1750703461119,-708.68,0.00023257,2]
[367217187,1750703461129,-490.0,0.00023257,2]
[367217189,1750703461138,-1024.71,0.00023257,2]
[367217191,1750703461148,-490.0,0.00023257,2]
[367217193,1750703461160,-1553.92,0.00023257,2]
[367217195,1750703461170,-1094.56,0.00023257,2]
[367217197,1750703461179,-490.0,0.00023257,2]
[367217199,1750703461189,-679.03,0.00023257,2]
[367217201,1750703461199,-796.42,0.00023258,2]
[367217203,1750703461209,-490.0,0.00023258,2]
[367217205,1750703461219,-181.92340943,0.00023258,2]
[367217207,1750703461229,-490.0,0.00023258,2]
[367217209,1750703461238,-1334.86,0.00023258,2]
[367217211,1750703461248,-742.05,0.00023258,2]
[367217213,1750703461257,-490.0,0.00023258,2]
[367217215,1750703461270,-544.13,0.00023258,2]
[367217217,1750703461281,-516.0079978,0.00023258,2]
[367217219,1750703461292,-490.0,0.00023258,2]
[367217221,1750703461303,-615.41,0.00023258,2]
[367217223,1750703461313,-490.0,0.00023258,2]
[367217225,1750703461323,-490.0,0.00023258,2]
[367217227,1750703461333,-490.0,0.00023258,2]
[367217229,1750703461342,-490.24098512,0.00023258,2]
[367217231,1750703461352,-490.0,0.00023258,2]
[367217233,1750703461361,-490.0,0.00023258,2]
[367217235,1750703461371,-490.0,0.00023258,2]
[367217237,1750703461381,-1086.78,0.00023258,2]
[367217239,1750703461390,-490.0,0.00023258,2]
[367217241,1750703461399,-925.6,0.00023258,2]
[367217243,1750703461410,-490.0,0.00023258,2]
[367217245,1750703461419,-490.0,0.00023258,2]
[367217247,1750703461429,-1008.37,0.00023258,2]
[367217249,1750703461439,-500.0,0.00023258,2]
[367217251,1750703461449,-476.0,0.00023259,2]
[367217253,1750703461459,-500.0,0.00023259,2]
[367217255,1750703461468,-764.78,0.00023259,2]
[367217257,1750703461478,-500.0,0.0002326,2]
[367217259,1750703461487,-2157.75593217,0.00023261,2]
[367217261,1750703461496,-301.99,0.00023264,2]
[367217263,1750703461506,-170.89,0.00023264,2]
[367217265,1750703461515,-355.03,0.00023264,2]
[367217267,1750703461524,-150.0,0.00023267,2]
[367217269,1750703461534,-467.27682802,0.00023273,2]
[367217271,1750703461544,-500.0,0.00023273,2]
[367217273,1750703461554,-500.0,0.00023273,2]
[367217275,1750703461565,-1416.1331638,0.00023273,2]
[367217277,1750703461575,-476.0,0.00023286,2]
[367217279,1750703461584,-154.0,0.00023296,2]
[367217281,1750703461594,-1416.1331638,0.00023302,2]
[367217283,1750703461603,-168.0,0.00023306,2]
[367217285,1750703461615,-476.0,0.00023314,2]
[367217287,1750703461629,-200.0,0.00023327,2]
[367217289,1750703461640,-200.0,0.00023327,2]
[367217291,1750703461650,-200.0,0.00023327,2]
[367217293,1750703461661,-200.0,0.00023327,2]
[367217295,1750703461671,-1416.1331638,0.00023331,2]
[367217297,1750703461680,-151.6186079,0.00023332,2]
[367217299,1750703461689,-476.0,0.00023341,2]
[367217301,1750703461699,-540.86553951,0.00023348,9]
[367217303,1750703461708,-156.587,0.00023349,2]
[367217305,1750703461718,-215.0738,0.00023349,2]
[367217307,1750703461727,-476.0,0.00023369,2]
[367217309,1750703461736,-150.0,0.00023394,2]
[367217311,1750703461746,-476.0,0.00023396,2]
[367217313,1750703461755,-203.0,0.0002342,2]
[367217315,1750703461764,-1000.0,0.00023421,2]
[367217317,1750703461774,-1000.0,0.00023421,2]
[367217319,1750703461783,-476.0,0.00023423,2]
[367217321,1750703461793,-490.0,0.00023429,2]
[367217323,1750703461802,-986.33,0.00023429,2]
[367217325,1750703461812,-552.3,0.00023429,2]
[367217327,1750703461821,-859.72,0.00023429,2]
[367217329,1750703461831,-1058.44,0.00023429,2]
[367217331,1750703461840,-878.84,0.00023429,2]
[367217333,1750703461850,-2010.3,0.00023429,2]
[367217334,1750703461860,-490.0,0.00023429,2]
[367217337,1750703461870,-759.67,0.00023429,2]
[367217338,1750703461880,-826.52,0.00023429,2]
[367217340,1750703461889,-632.52,0.00023429,2]
[367217343,1750703461899,-1071.02,0.00023429,2]
[367217345,1750703461911,-1066.07,0.00023429,2]
[367217347,1750703461920,-490.0,0.00023429,2]
[367217349,1750703461930,-841.69,0.00023429,2]
[367217350,1750703461939,-889.35,0.00023429,2]
[367217352,1750703461950,-490.0,0.00023429,2]
[367217353,1750703461959,-1022.71,0.00023429,2]
[367217354,1750703461969,-727.45,0.00023429,2]
[367217355,1750703461978,-500.27,0.00023429,2]
[367217356,1750703461988,-4760.02,0.00023429,2]
[367217357,1750703461997,-756.93,0.00023429,2]
[367217358,1750703462007,-490.0,0.00023429,2]
[367217360,1750703462016,-939.91,0.00023429,2]
[367217362,1750703462026,-1186.95,0.00023429,2]
[367217364,1750703462036,-600.07,0.00023429,2]
[367217366,1750703462045,-694.45,0.00023429,2]
[367217368,1750703462055,-490.0,0.00023429,2]
[367217371,1750703462065,-2086.48,0.00023429,2]
[367217373,1750703462075,-490.0,0.00023429,2]
[367217374,1750703462085,-490.0,0.00023429,2]
[367217376,1750703462094,-514.34,0.00023429,2]
[367217387,1750703462190,-490.0,0.00023429,2]
[367217389,1750703462200,-490.0,0.00023429,2]
[367217391,1750703462211,-2209.25,0.00023429,2]
[367217393,1750703462220,-490.0,0.00023429,2]
[367217395,1750703462230,-514.93,0.0002343,2]
[367217397,1750703462239,-490.0,0.0002343,2]
[367217399,1750703462248,-490.0,0.0002343,2]
[367217401,1750703462258,-490.0,0.0002343,2]
[367217403,1750703462268,-543.8,0.0002343,2]
[367217405,1750703462278,-1006.91,0.0002343,2]
[367217407,1750703462287,-490.0,0.0002343,2]
[367217409,1750703462296,-498.85,0.0002343,2]
[367217411,1750703462305,-490.0,0.0002343,2]
[367217413,1750703462315,-490.0,0.0002343,2]
[367217415,1750703462324,-490.0,0.0002343,2]
[367217417,1750703462334,-490.0,0.0002343,2]
[367217419,1750703462343,-490.0,0.0002343,2]
[367217421,1750703462353,-979.12,0.0002343,2]
[367217423,1750703462363,-649.28,0.0002343,2]
[367217425,1750703462374,-296.54241848,0.0002343,2]
[367217427,1750703462384,-490.0,0.0002343,2]
[367217429,1750703462393,-550.25,0.0002343,2]
[367217431,1750703462405,-490.0,0.0002343,2]
[367217433,1750703462415,-490.0,0.0002343,2]
[367217435,1750703462424,-742.41,0.0002343,2]
[367217437,1750703462433,-490.0,0.0002343,2]
[367217439,1750703462442,-490.0,0.0002343,2]
[367217441,1750703462452,-555.66,0.0002343,2]
[367217443,1750703462462,-613.5851819,0.0002343,2]
[367217498,1750703462996,-112.5648181,0.0002343,2]
[367217500,1750703463006,-490.0,0.0002343,2]
[367217502,1750703463016,-799.4,0.0002343,2]
[367217504,1750703463027,-557.33,0.0002343,2]
[367217506,1750703463039,-106.5689819,0.0002343,2]
[367217509,1750703463052,-433.6810181,0.0002343,2]
[367217511,1750703463063,-944.87,0.0002343,2]
[367217513,1750703463073,-1180.1,0.0002343,2]
[367217515,1750703463084,-217.062649,0.0002343,2]
[367217516,1750703463094,-715.97,0.0002343,2]
[367217519,1750703463105,-490.0,0.0002343,2]
[367217521,1750703463114,-652.03,0.0002343,2]
[367217522,1750703463124,-655.29,0.0002343,2]
[367217524,1750703463134,-946.15,0.0002343,2]
[367217527,1750703463145,-490.0,0.0002343,2]
[367217529,1750703463158,-217.495997,0.0002343,2]
[367217530,1750703463168,-490.0,0.0002343,2]
[367217532,1750703463178,-605.06,0.0002343,2]
[367217534,1750703463187,-621.21,0.0002343,2]
[367217536,1750703463197,-1020.66,0.0002343,2]
[367217538,1750703463207,-604.822264,0.0002343,2]
[367217540,1750703463217,-490.0,0.0002343,2]
[367217542,1750703463226,-638.65,0.0002343,2]
[367217544,1750703463236,-202.80364178,0.0002343,2]
[367217546,1750703463246,-602.05,0.0002343,2]
[367217548,1750703463256,-490.0,0.0002343,2]
[367217550,1750703463265,-490.0,0.0002343,2]
[367217552,1750703463275,-490.0,0.0002343,2]
[367217554,1750703463285,-490.0,0.0002343,2]
[367217556,1750703463295,-1669.06,0.0002343,2]
[367217558,1750703463305,-1100.47,0.0002343,2]
[367217560,1750703463315,-490.0,0.0002343,2]
[367217562,1750703463325,-882.73,0.0002343,2]
[367217564,1750703463335,-661.31,0.0002343,2]
[367217566,1750703463344,-490.0,0.0002343,2]
[367217568,1750703463354,-490.0,0.0002343,2]
[367217570,1750703463364,-490.0,0.0002343,2]
[367217571,1750703463374,-964.77,0.0002343,2]
[367217573,1750703463384,-490.0,0.0002343,2]
[367217575,1750703463394,-851.48,0.0002343,2]
[367217577,1750703463407,-1048.39,0.0002343,2]
[367217580,1750703463418,-490.0,0.0002343,2]
[367217582,1750703463428,-490.0,0.0002343,2]
[367217583,1750703463438,-831.49,0.0002343,2]
[367217585,1750703463448,-490.0,0.0002343,2]
[367217587,1750703463457,-820.93,0.0002343,2]
[367217589,1750703463467,-539.45,0.0002343,2]
[367217591,1750703463476,-977.71,0.0002343,2]
[367217593,1750703463486,-490.0,0.0002343,2]
[367217595,1750703463496,-490.0,0.0002343,2]
[367217597,1750703463506,-1354.8,0.0002343,2]
[367217599,1750703463517,-731.38,0.0002343,2]
[367217601,1750703463527,-855.0,0.0002343,2]
[367217603,1750703463537,-490.0,0.0002343,2]
[367217605,1750703463548,-4689.32,0.0002343,2]
[367217607,1750703463558,-490.0,0.0002343,2]
[367217609,1750703463569,-547.97,0.0002343,2]
[367217611,1750703463580,-1759.87,0.0002343,2]
[367217613,1750703463590,-704.3,0.0002343,2]
[367217615,1750703463600,-163.363658,0.0002343,2]
[367217617,1750703463609,-490.0,0.0002343,2]
[367217619,1750703463627,-555.43,0.0002343,2]
[367217621,1750703463636,-1216.09,0.0002343,2]
[367217623,1750703463645,-490.0,0.0002343,2]
[367217625,1750703463655,-649.78,0.0002343,2]
[367217627,1750703463667,-518.25,0.0002343,2]
[367217628,1750703463676,-2199.12,0.0002343,2]
[367217630,1750703463687,-895.62,0.0002343,2]
[367217632,1750703463698,-640.44,0.0002343,2]
[367217634,1750703463707,-960.61,0.0002343,2]
[367217636,1750703463715,-490.0,0.0002343,2]
[367217638,1750703463724,-1677.04,0.0002343,2]
[367217640,1750703463735,-2158.56,0.0002343,2]
[367217642,1750703463745,-522.67,0.0002343,2]
[367217644,1750703463755,-1263.07,0.0002343,2]
[367217646,1750703463765,-2336.99,0.0002343,2]
[367217648,1750703463776,-1028.94,0.0002343,2]
[367217650,1750703463786,-816.02,0.0002343,2]
[367217652,1750703463797,-1233.7,0.0002343,2]
[367217654,1750703463807,-1117.47,0.0002343,2]
[367217656,1750703463817,-2483.6,0.0002343,2]
[367217658,1750703463827,-886.54,0.0002343,2]
[367217660,1750703463836,-1455.26,0.0002343,2]
[367217662,1750703463846,-797.87,0.0002343,2]
[367217664,1750703463858,-415.2,0.0002343,2]
[367217666,1750703463870,-994.91,0.0002343,2]
[367217667,1750703463881,-1064.39,0.0002343,2]
[367217669,1750703463891,-1518.01,0.0002343,2]
[367217671,1750703463901,-1760.85,0.0002343,2]
[367217673,1750703463913,-877.52,0.0002343,2]
[367217675,1750703463923,-963.8,0.0002343,2]
[367217677,1750703463934,-932.37,0.0002343,2]
[367217679,1750703463943,-490.0,0.0002343,2]
[367217681,1750703463953,-1045.91,0.0002343,2]
[367217683,1750703463964,-7561.8,0.0002343,2]
[367217685,1750703463973,-490.0,0.0002343,2]
[367217687,1750703463983,-841.5,0.0002343,2]
[367217689,1750703463992,-1237.37,0.0002343,2]
[367217691,1750703464002,-854.6,0.0002343,2]
[367217693,1750703464012,-953.81,0.0002343,2]
[367217695,1750703464021,-1148.34,0.0002343,2]
[367217697,1750703464031,-490.0,0.0002343,2]
[367217699,1750703464041,-1262.29,0.0002343,2]
[367217700,1750703464050,-1444.42,0.0002343,2]
[367217702,1750703464060,-1041.14,0.0002343,2]
[367217704,1750703464069,-490.0,0.0002343,2]
[367217706,1750703464078,-490.0,0.0002343,2]
[367217708,1750703464088,-2154.56,0.0002343,2]
[367217710,1750703464097,-962.13,0.0002343,2]
[367217712,1750703464106,-964.03,0.0002343,2]
[367217714,1750703464116,-2222.87,0.0002343,2]
[367217716,1750703464125,-133.4107722,0.0002343,2]
[367217720,1750703464158,-694.5392278,0.0002343,2]
[367217722,1750703464168,-490.0,0.0002343,2]
[367217724,1750703464177,-987.4,0.0002343,2]
[367217726,1750703464187,-2074.11,0.0002343,2]
[367217728,1750703464197,-1051.72,0.0002343,2]
[367217730,1750703464207,-490.0,0.0002343,2]
[367217732,1750703464217,-490.0,0.0002343,2]
[367217734,1750703464227,-630.84,0.0002343,2]
[367217736,1750703464236,-1219.17,0.0002343,2]
[367217738,1750703464245,-1059.99,0.0002343,2]
[367217740,1750703464255,-8511.08,0.0002343,2]
[367217742,1750703464264,-490.0,0.0002343,2]
[367217744,1750703464273,-784.77,0.0002343,2]
[367217745,1750703464283,-300.62941913,0.0002343,2]
[367217748,1750703464295,-207.32058087,0.0002343,2]
[367217750,1750703464305,-742.98,0.0002343,2]
[367217751,1750703464314,-1021.87,0.0002343,2]
[367217753,1750703464325,-998.88,0.0002343,2]
[367217755,1750703464334,-988.23,0.0002343,2]
[367217757,1750703464343,-1161.51,0.0002343,2]
[367217759,1750703464353,-892.04,0.0002343,2]
[367217761,1750703464363,-490.0,0.0002343,2]
[367217763,1750703464372,-287.07595703,0.0002343,2]
[367217765,1750703464385,-385.21404297,0.0002343,2]
[367217767,1750703464395,-490.0,0.0002343,2]
[367217769,1750703464406,-895.8,0.0002343,2]
[367217771,1750703464415,-1796.74,0.0002343,2]
[367217773,1750703464425,-1497.0,0.0002343,2]
[367217775,1750703464434,-1158.61,0.0002343,2]
[367217777,1750703464444,-1124.38,0.0002343,2]
[367217779,1750703464453,-636.49386806,0.0002343,2]
[367217781,1750703464465,-149.22613194,0.0002343,2]
[367217783,1750703464474,-2449.71,0.0002343,2]
[367217785,1750703464483,-432.22281625,0.00023431,2]
[367217787,1750703464500,-490.0,0.00023155,2]
[367217789,1750703464509,-299.76718375,0.00023431,2]
[367217791,1750703464519,-565.01,0.00023431,2]
[367217793,1750703464528,-490.0,0.00023431,2]
[367217795,1750703464537,-490.0,0.00023431,2]
[367217797,1750703464546,-490.0,0.00023431,2]
[367217799,1750703464556,-490.0,0.00023431,2]
[367217801,1750703464566,-510.14,0.00023431,2]
[367217803,1750703464575,-490.0,0.00023431,2]
[367217804,1750703464584,-273.39959848,0.00023431,2]
[367217806,1750703464593,-187.1662083,0.00023431,2]
[367217885,1750703465394,-491.28255314,0.00022882,2]
[367217887,1750703465403,-1644.4,0.00022882,2]
[367217889,1750703465414,-756.39,0.00022883,2]
[367217891,1750703465424,-490.0,0.00022983,2]
[367217893,1750703465434,-1644.4,0.00023156,2]
[367217895,1750703465444,-756.39,0.00023157,2]
[367217897,1750703465454,-490.0,0.00023257,2]
[367217899,1750703465464,-490.0,0.00023429,2]
[367217901,1750703465473,-1644.4,0.0002343,2]
[367217903,1750703465483,-302.8337917,0.00023431,2]
[367217905,1750703465493,-490.0,0.00023431,2]
[367217907,1750703465503,-499.5,0.00023431,2]
[367217909,1750703465513,-657.21,0.00023431,2]
[367217911,1750703465523,-490.0,0.00023431,2]
[367217913,1750703465532,-599.79,0.00023431,2]
[367217915,1750703465542,-490.0,0.00023431,2]
[367217917,1750703465552,-490.0,0.00023431,2]
[367217919,1750703465562,-528.33,0.00023431,2]
[367217921,1750703465572,-490.0,0.00023431,2]
[367217923,1750703465582,-490.0,0.00023431,2]
[367217925,1750703465591,-490.0,0.00023431,2]
[367217927,1750703465601,-490.0,0.00023431,2]
[367217929,1750703465610,-490.0,0.00023431,2]
[367217931,1750703465622,-292.75,0.00023431,2]
[367217932,1750703465633,-490.0,0.00023431,2]
[367217934,1750703465642,-490.0,0.00023431,2]
[367217936,1750703465652,-655.84,0.00023431,2]
[367217938,1750703465664,-623.87,0.00023431,2]
[367217940,1750703465674,-490.0,0.00023431,2]
[367217942,1750703465684,-490.0,0.00023431,2]
[367217944,1750703465694,-490.0,0.00023431,2]
[367217946,1750703465705,-490.0,0.00023431,2]
[367217948,1750703465715,-541.83,0.00023431,2]
[367217950,1750703465725,-808.94,0.00023431,2]
[367217952,1750703465735,-490.0,0.00023431,2]
[367217954,1750703465746,-490.0,0.00023431,2]
[367217956,1750703465756,-634.72,0.00023431,2]
[367217958,1750703465766,-598.45,0.00023431,2]
[367217960,1750703465776,-195.36297924,0.00023431,2]
[367217962,1750703465785,-490.0,0.00023431,2]
[367217964,1750703465795,-490.0,0.00023431,2]
[367217966,1750703465806,-490.0,0.00023431,2]
[367217968,1750703465816,-490.0,0.00023431,2]
[367217970,1750703465826,-227.30652887,0.00023431,2]
[367217971,1750703465836,-490.0,0.00023431,2]
[367217972,1750703465846,-490.0,0.00023431,2]
[367217973,1750703465855,-490.0,0.00023431,2]
[367217974,1750703465865,-490.0,0.00023431,2]
[367217975,1750703465875,-490.0,0.00023431,2]
[367217976,1750703465885,-513.33371761,0.00023431,2]
[367217977,1750703465895,-490.0,0.00023431,2]
[367217978,1750703465905,-490.0,0.00023431,2]
[367217979,1750703465915,-490.0,0.00023431,2]
[367217980,1750703465924,-490.0,0.00023431,2]
[367217981,1750703465935,-154.67042944,0.00023431,2]
[367217987,1750703466033,-335.32957056,0.00023431,2]
[367217989,1750703466043,-490.0,0.00023431,2]
[367217991,1750703466053,-183.97008328,0.00023431,2]
[367217993,1750703466062,-490.0,0.00023431,2]
[367217995,1750703466072,-629.66,0.00023431,2]
[367217997,1750703466081,-1076.12,0.00023431,2]
[367217999,1750703466092,-490.0,0.00023431,2]
[367218001,1750703466102,-490.0,0.00023431,2]
[367218003,1750703466112,-490.0,0.00023431,2]
[367218005,1750703466122,-663.99,0.00023431,2]
[367218007,1750703466132,-490.0,0.00023431,2]
[367218009,1750703466141,-160.97079996,0.00023431,2]
[367218011,1750703466152,-586.81,0.00023431,2]
[367218013,1750703466163,-490.0,0.00023431,2]
[367218015,1750703466173,-159.22925544,0.00023431,2]
[367218017,1750703466182,-667.49,0.00023431,2]
[367218019,1750703466192,-490.0,0.00023431,2]
[367218021,1750703466201,-504.12,0.00023431,2]
[367218023,1750703466213,-490.0,0.00023431,2]
[367218025,1750703466223,-490.0,0.00023431,2]
[367218027,1750703466233,-490.0,0.00023431,2]
[367218029,1750703466242,-1084.72,0.00023431,2]
[367218031,1750703466252,-490.0,0.00023431,2]
[367218033,1750703466262,-38.90380575,0.00023431,2]
[367218036,1750703466274,-235.45084809,0.00023431,2]
[367218038,1750703466284,-490.0,0.00023431,2]
[367218040,1750703466294,-490.0,0.00023431,2]
[367218042,1750703466303,-369.90089629,0.00023431,2]
[367218044,1750703466313,-490.0,0.00023431,2]
[367218046,1750703466323,-490.0,0.00023431,2]
[367218048,1750703466333,-508.65,0.00023431,2]
[367218050,1750703466343,-490.0,0.00023431,2]
[367218052,1750703466353,-1213.24,0.00023431,2]
[367218054,1750703466362,-490.0,0.00023431,2]
[367218056,1750703466372,-1041.2,0.00023431,2]
[367218058,1750703466381,-1145.43,0.00023431,2]
[367218060,1750703466391,-490.0,0.00023431,2]
[367218062,1750703466400,-588.92731143,0.00023431,2]
[367218064,1750703466412,-551.36,0.00023431,2]
[367218066,1750703466421,-490.0,0.00023431,2]
[367218068,1750703466432,-1426.73,0.00023431,2]
[367218070,1750703466442,-490.0,0.00023431,2]
[367218072,1750703466453,-21.92474836,0.00023431,2]
[367218074,1750703466467,-468.07525164,0.00023431,2]
[367218076,1750703466476,-1468.14,0.00023431,2]
[367218079,1750703466487,-293.11228903,0.00023431,2]
[367218081,1750703466496,-490.0,0.00023431,2]
[367218083,1750703466506,-490.0,0.00023431,2]
[367218085,1750703466517,-589.46257098,0.00023431,2]
[367218087,1750703466527,-490.0,0.00023431,2]
[367218089,1750703466537,-490.0,0.00023431,2]